bitfinex/quotes_BTCUSD_20241025
["timestamp","ask_amount","ask_price","bid_price","bid_amount"]
[1729862791708,0.00070305,68005.0,68004.0,1.03719271]
[1729862794522,0.00070305,68005.0,68004.0,0.7523244]
[1729862794724,0.00070305,68005.0,68004.0,0.65584684]
[1729862794954,0.00070305,68005.0,68004.0,0.77017052]
[1729862795165,0.00070305,68005.0,68004.0,0.93243925]
[1729862795366,0.00070305,68005.0,68004.0,0.74819032]
[1729862795574,0.00070305,68005.0,68004.0,0.89869413]
[1729862795781,0.00070305,68005.0,68004.0,0.85556264]
[1729862796031,0.00070305,68005.0,68004.0,1.08375146]
[1729862796584,0.00070305,68005.0,68004.0,1.08374464]
[1729862797538,0.00070305,68005.0,68004.0,0.92148871]
[1729862798994,0.00070305,68005.0,68004.0,0.92148837]
[1729862800616,0.00070305,68005.0,68004.0,0.92147789]
[1729862802084,0.00070305,68005.0,68004.0,0.8555623]
[1729862802562,0.00070305,68005.0,68004.0,0.64668766]
[1729862802800,0.00070305,68005.0,68004.0,0.58077481]
[1729862803031,0.00070305,68005.0,68004.0,0.62471732]
[1729862804009,0.00070305,68005.0,68004.0,0.64668766]
[1729862804284,0.00070305,68005.0,68004.0,0.58077481]
[1729862804533,0.00070305,68005.0,68004.0,0.80885582]
[1729862804776,0.00070305,68005.0,68004.0,0.58077481]
[1729862805187,0.00070305,68005.0,68004.0,0.62471773]
[1729862807117,0.00070305,68005.0,68004.0,0.62472007]
[1729862807325,0.00070305,68005.0,68004.0,0.58077481]
[1729862808024,0.00070305,68005.0,68004.0,0.62472231]
[1729862808478,0.00070305,68005.0,68004.0,0.58077481]
[1729862809202,0.00070305,68005.0,68004.0,0.80889219]
[1729862809645,0.00070305,68005.0,68004.0,0.58077481]
[1729862809857,0.00070305,68005.0,68004.0,0.40797481]
[1729862811422,0.00070305,68005.0,68004.0,0.47389843]
[1729862812540,0.00070305,68005.0,68004.0,0.63619656]
[1729862813006,0.00070305,68005.0,68004.0,0.6361966]
[1729862813442,0.00070305,68005.0,68004.0,0.57027298]
[1729862813851,0.00070305,68005.0,68004.0,0.63623122]
[1729862815428,0.00070305,68005.0,68004.0,0.57027298]
[1729862816081,0.00070305,68005.0,68004.0,0.65816044]
[1729862816528,0.00070305,68005.0,68004.0,0.6535634]
[1729862816754,0.00070305,68005.0,68004.0,0.65816045]
[1729862817453,0.00070305,68005.0,68004.0,0.57027299]
[1729862818073,0.00070305,68005.0,68004.0,0.66562516]
[1729862818518,0.00070305,68005.0,68004.0,0.57762825]
[1729862819116,0.00070305,68005.0,68004.0,0.5776305]
[1729862819319,0.00070305,68005.0,68004.0,0.68763808]
[1729862819939,0.00070305,68005.0,68004.0,0.5776305]
[1729862820348,0.00070305,68005.0,68004.0,0.68763808]
[1729862821805,0.00070305,68005.0,68004.0,0.80196176]
[1729862822449,0.00070305,68005.0,68004.0,0.80213872]
[1729862823280,0.00070305,68005.0,68004.0,0.68781504]
[1729862823597,0.00070305,68005.0,68004.0,0.69208122]
[1729862826320,0.00070305,68005.0,68004.0,0.69208124]
[1729862828527,0.00070305,68005.0,68004.0,0.73802709]
[1729862829741,0.00070305,68005.0,68004.0,0.63802709]
[1729862831845,0.00070305,68005.0,68004.0,0.47559967]
[1729862841218,0.00070305,68005.0,68004.0,0.16482633]
[1729862841447,0.00070305,68005.0,68004.0,0.15982633]
[1729862841674,0.00070305,68005.0,68004.0,0.16482633]
[1729862841883,0.00070305,68005.0,68004.0,0.01277633]
[1729862841884,0.17450305,68005.0,68004.0,0.01277633]
[1729862843180,0.17450305,68005.0,68004.0,0.15982633]
[1729862844013,0.17450305,68005.0,68004.0,0.23479586]
[1729862844187,0.17450305,68005.0,68004.0,0.01277633]
[1729862844551,0.17450305,68005.0,68004.0,0.000824]
[1729862844774,0.17450305,68005.0,68004.0,0.01277852]
[1729862845856,0.17719208,68005.0,68004.0,0.01277852]
[1729862846489,0.32424008,68005.0,68004.0,0.01277852]
[1729862846720,0.32155105,68005.0,68004.0,0.01277852]
[1729862852119,0.32155105,68005.0,68004.0,0.0127786]
[1729862859400,0.32155105,68005.0,68004.0,0.000824]
[1729862859614,0.32155105,68005.0,68004.0,0.01277876]
[1729862859852,0.57462423,68005.0,68004.0,0.00542198]
[1729862860120,0.57462423,68005.0,68004.0,0.000824]
[1729862860377,0.47205486,68005.0,68004.0,0.000824]
[1729862861533,0.47705486,68005.0,68004.0,0.000824]
[1729862866434,0.47442811,68005.0,68004.0,0.000824]
[1729862867110,0.58375179,68005.0,68004.0,0.000824]
[1729862867829,0.58875179,68005.0,68004.0,0.000824]
[1729862869186,0.58375179,68005.0,68004.0,0.000824]
[1729862870073,0.58875179,68005.0,68004.0,0.000824]
[1729862870282,0.58375179,68005.0,68004.0,0.000824]
[1729862872628,0.46942811,68005.0,68004.0,0.000824]
[1729862872895,0.58375179,68005.0,68004.0,0.0054224]
[1729862873825,0.58375179,68005.0,68004.0,0.000824]
[1729862874050,0.58375179,68005.0,68004.0,0.00542243]
[1729862877753,0.58539979,68005.0,68004.0,0.00542243]
[1729862879949,0.58302525,68005.0,68004.0,0.00542243]
[1729862880602,0.58155482,68005.0,68004.0,0.00542243]
[1729862881340,0.148696,68005.0,68004.0,0.00542243]
[1729862881593,0.15138503,68005.0,68004.0,0.0127796]
[1729862881834,0.26570871,68005.0,68004.0,0.00542243]
[1729862883489,0.26570871,68005.0,68004.0,0.01277964]
[1729862883743,0.148696,68005.0,68004.0,0.02268678]
[1729862884005,0.148696,68005.0,68004.0,0.02268659]
[1729862884960,0.148696,68005.0,68004.0,0.01277945]
[1729862887890,0.14819147,68005.0,68004.0,0.01277945]
[1729862888121,0.14819147,68005.0,68004.0,0.01277893]
[1729862891592,0.14819147,68005.0,68004.0,0.01277886]
[1729862893785,0.001648,68005.0,68004.0,0.01277886]
[1729862894033,0.001648,68005.0,68004.0,0.24416491]
[1729862894492,0.001648,68005.0,68004.0,0.39121491]
[1729862895438,0.001648,68005.0,68004.0,0.37926005]
[1729862895660,0.001648,68005.0,68004.0,0.39487644]
[1729862895889,0.001648,68005.0,68004.0,0.34339039]
[1729862897301,0.001648,68005.0,68004.0,0.34839039]
[1729862898464,0.001648,68005.0,68004.0,0.59850618]
[1729862899193,0.00100571,68005.0,68004.0,0.59850618]
[1729862899444,0.00100571,68005.0,68004.0,0.59850503]
[1729862899651,0.00100571,68005.0,68004.0,0.510392]
[1729862899878,0.00100571,68005.0,68004.0,0.6526716]
[1729862900360,0.00100571,68005.0,68004.0,0.49566884]
[1729862900903,0.00100571,68005.0,68004.0,0.53972357]
[1729862901253,0.00036434,68005.0,68004.0,0.53472357]
[1729862902413,0.00036434,68005.0,68004.0,0.49066884]
[1729862903325,0.00036434,68005.0,68004.0,0.49066941]
[1729862905494,0.00036434,68005.0,68004.0,0.31076941]
[1729862905961,0.00036434,68005.0,68004.0,0.16848981]
[1729862910399,0.00036434,68005.0,68004.0,0.16348981]
[1729862910639,0.00036434,68005.0,68004.0,0.16848981]
[1729862911115,0.00036434,68005.0,68004.0,0.151536]
[1729862911371,0.00036434,68005.0,68004.0,0.156536]
[1729862911603,0.00036434,68005.0,68004.0,0.26843597]
[1729862912573,0.14741234,68005.0,68004.0,0.004486]
[1729862916569,0.30060518,68005.0,68004.0,0.004486]
[1729862916788,0.47638201,68005.0,68004.0,0.004486]
[1729862917033,0.47369298,68005.0,68004.0,0.004486]
[1729862918419,0.47869298,68005.0,68004.0,0.004486]
[1729862926144,0.29769298,68005.0,68004.0,0.004486]
[1729862926369,0.30038201,68005.0,68004.0,0.004486]
[1729862927527,0.47758201,68005.0,68004.0,0.004486]
[1729862927746,0.47489298,68005.0,68004.0,0.004486]
[1729862928702,0.47466915,68005.0,68004.0,0.004486]
[1729862934608,0.47631715,68005.0,68004.0,0.004486]
[1729862936126,0.29911715,68005.0,68004.0,0.004486]
[1729862936338,0.30180618,68005.0,68004.0,0.004486]
[1729862936568,0.14861334,68005.0,68004.0,0.004486]
[1729862936786,0.148696,68005.0,68004.0,0.036865]
[1729862937010,0.148696,68005.0,68004.0,0.004486]
[1729862941157,0.001648,68005.0,68004.0,0.004486]
[1729862941373,0.148696,68005.0,68004.0,0.004486]
[1729862941584,0.001648,68005.0,68004.0,0.004486]
[1729862941816,0.001648,68005.0,68004.0,0.1986208]
[1729862942037,0.001648,68005.0,68004.0,0.0515708]
[1729862942259,0.001648,68005.0,68004.0,0.004486]
[1729862942485,0.001648,68005.0,68004.0,0.151536]
[1729862943348,0.001648,68005.0,68004.0,0.004486]
[1729862948445,0.148696,68005.0,68004.0,0.004486]
[1729862951298,0.001648,68005.0,68004.0,0.004486]
[1729862951953,0.001648,68005.0,68004.0,0.213326]
[1729862952165,0.001648,68005.0,68004.0,0.322736]
[1729862953070,0.001648,68005.0,68004.0,0.43705968]
[1729862953295,0.001648,68005.0,68004.0,0.94276955]
[1729862953527,0.001648,68005.0,68004.0,0.76243227]
[1729862953745,0.001648,68005.0,68004.0,0.85045041]
[1729862953962,0.001648,68005.0,68004.0,1.00095422]
[1729862954432,0.001648,68005.0,68004.0,1.00091592]
[1729862954652,0.001648,68005.0,68004.0,1.00291592]
[1729862955377,0.001648,68005.0,68004.0,1.00091592]
[1729862956539,0.001648,68005.0,68004.0,0.91293608]
[1729862956986,0.001648,68005.0,68004.0,0.91264886]
[1729862958151,0.001648,68005.0,68004.0,0.97860627]
[1729862958632,0.001648,68005.0,68004.0,0.97847504]
[1729862958823,0.001648,68005.0,68004.0,0.81898471]
[1729862959568,0.001648,68005.0,68004.0,0.7530273]
[1729862967110,0.001648,68005.0,68004.0,0.55790362]
[1729862967928,0.001648,68005.0,68004.0,0.54794362]
[1729862968154,0.001648,68005.0,68004.0,0.55790362]
[1729862968533,0.001648,68005.0,68004.0,0.54794362]
[1729862969198,0.001648,68005.0,68004.0,0.55790362]
[1729862970364,0.001648,68005.0,68004.0,0.54794362]
[1729862970588,0.001648,68005.0,68004.0,0.55290362]
[1729862971074,0.001648,68005.0,68004.0,0.54794362]
[1729862971483,0.001648,68005.0,68004.0,0.55790362]
[1729862971683,0.001648,68005.0,68004.0,0.55294362]
[1729862971943,0.001648,68005.0,68004.0,0.54794362]
[1729862973227,0.001648,68005.0,68004.0,0.39743981]
[1729862976709,0.001648,68005.0,68004.0,0.151536]
[1729862976920,0.001648,68005.0,68004.0,0.004486]
[1729862977178,0.001648,68005.0,68004.0,0.151536]
[1729862979374,0.001648,68005.0,68004.0,0.15889239]
[1729862981376,0.001648,68005.0,68004.0,0.15889233]
[1729862983327,0.001648,68005.0,68004.0,0.151536]
[1729862987131,0.001648,68005.0,68004.0,0.24598385]
[1729862988481,0.001648,68005.0,68004.0,0.29000018]
[1729862989365,0.001648,68005.0,68004.0,0.19555233]
[1729862993426,0.001648,68005.0,68004.0,0.15889197]
[1729862995335,0.001648,68005.0,68004.0,0.151536]
[1729862995558,0.001648,68005.0,68004.0,0.15889198]
[1729862996465,0.001648,68005.0,68004.0,0.22491648]
[1729862997142,0.001648,68005.0,68004.0,0.38572111]
[1729862997376,0.001648,68005.0,68004.0,0.42074614]
[1729863000568,0.001648,68005.0,68004.0,0.77094258]
[1729863000794,0.001648,68005.0,68004.0,0.68281139]
[1729863001026,0.001648,68005.0,68004.0,0.50386366]
[1729863001263,0.001648,68005.0,68004.0,0.40776758]
[1729863001501,0.001648,68005.0,68004.0,0.42978571]
[1729863001744,0.001648,68005.0,68004.0,0.31962255]
[1729863002230,0.001648,68005.0,68004.0,0.40777206]
[1729863002689,0.001648,68005.0,68004.0,0.53632462]
[1729863002919,0.001648,68005.0,68004.0,0.40777206]
[1729863003408,0.001648,68005.0,68004.0,0.40777266]
[1729863003868,0.001648,68005.0,68004.0,0.42981914]
[1729863004103,0.001648,68005.0,68004.0,0.41912315]
[1729863004327,0.001648,68005.0,68004.0,0.55333031]
[1729863005191,0.001648,68005.0,68004.0,0.41912315]
[1729863005421,0.001648,68005.0,68004.0,0.42984038]
[1729863005723,0.001648,68005.0,68004.0,0.31226724]
[1729863006141,0.001648,68005.0,68004.0,0.40044169]
[1729863006575,0.001648,68005.0,68004.0,0.40779773]
[1729863006806,0.001648,68005.0,68004.0,0.51908613]
[1729863007067,0.001648,68005.0,68004.0,0.43091162]
[1729863007514,0.001648,68005.0,68004.0,0.51908833]
[1729863007728,0.001648,68005.0,68004.0,0.43091162]
[1729863007955,0.001648,68005.0,68004.0,0.17257322]
[1729863008173,0.318596,68005.0,68004.0,0.01184198]
[1729863009960,0.224296,68005.0,68004.0,0.01184198]
[1729863011558,0.22698503,68005.0,68004.0,0.01184198]
[1729863014408,0.22698503,68005.0,68004.0,0.01184272]
[1729863014622,0.224296,68005.0,68004.0,0.01184272]
[1729863015306,0.22698503,68005.0,68004.0,0.01184272]
[1729863015538,0.46939981,68005.0,68004.0,0.01184272]
[1729863015763,0.69872349,68005.0,68004.0,0.004486]
[1729863015984,0.7445951,68005.0,68004.0,0.004486]
[1729863016266,0.76645997,68005.0,68004.0,0.004486]
[1729863016493,0.76445997,68005.0,68004.0,0.004486]
[1729863016711,0.62822647,68005.0,68004.0,0.004486]
[1729863016928,0.65013629,68005.0,68004.0,0.004486]
[1729863017147,0.69872349,68005.0,68004.0,0.004486]
[1729863017367,0.62820465,68005.0,68004.0,0.004486]
[1729863017581,0.74252833,68005.0,68004.0,0.004486]
[1729863017814,0.69872349,68005.0,68004.0,0.004486]
[1729863018020,0.58439981,68005.0,68004.0,0.004486]
[1729863018234,0.68872349,68005.0,68004.0,0.004486]
[1729863018462,0.318896,68005.0,68004.0,0.004486]
[1729863018680,0.224296,68005.0,68004.0,0.004486]
[1729863018902,0.001648,68005.0,68004.0,0.004486]
[1729863019142,0.148696,68005.0,68004.0,0.004486]
[1729863019585,0.001648,68005.0,68004.0,0.151536]
[1729863020091,0.001648,68005.0,68004.0,0.15889501]
[1729863020956,0.001648,68005.0,68004.0,0.30939882]
[1729863021176,0.001648,68005.0,68004.0,0.31435882]
[1729863021430,0.001648,68005.0,68004.0,0.67889262]
[1729863021656,0.001648,68005.0,68004.0,0.68619117]
[1729863021895,0.001648,68005.0,68004.0,0.65319645]
[1729863022815,0.001648,68005.0,68004.0,0.48095617]
[1729863023033,0.001648,68005.0,68004.0,0.15889134]
[1729863023471,0.001648,68005.0,68004.0,0.01184134]
[1729863023686,0.001648,68005.0,68004.0,0.01643865]
[1729863023687,0.148696,68005.0,68004.0,0.01643865]
[1729863023913,0.148696,68005.0,68004.0,0.00908331]
[1729863025405,0.001648,68005.0,68004.0,0.15613331]
[1729863025623,0.001648,68005.0,68004.0,0.20499997]
[1729863025848,0.001648,68005.0,68004.0,0.20941462]
[1729863026106,0.001648,68005.0,68004.0,0.36781902]
[1729863026364,0.001648,68005.0,68004.0,0.40887236]
[1729863026579,0.001648,68005.0,68004.0,0.69136504]
[1729863026791,0.001648,68005.0,68004.0,0.77266504]
[1729863027007,0.001648,68005.0,68004.0,0.70667415]
[1729863027220,0.001648,68005.0,68004.0,0.7965832]
[1729863027434,0.001648,68005.0,68004.0,0.73160771]
[1729863027656,0.001648,68005.0,68004.0,0.72960771]
[1729863028638,0.001648,68005.0,68004.0,0.71765506]
[1729863028844,0.001648,68005.0,68004.0,0.73160695]
[1729863029081,0.001648,68005.0,68004.0,0.84157632]
[1729863029500,0.001648,68005.0,68004.0,0.73160695]
[1729863029912,0.001648,68005.0,68004.0,0.83160695]
[1729863030117,0.001648,68005.0,68004.0,0.8773747]
[1729863030343,0.001648,68009.0,68008.0,0.458401]
[1729863030580,0.001648,68009.0,68008.0,1.30673238]
[1729863030780,0.001648,68018.0,68017.0,0.465082]
[1729863030988,0.22144961,68020.0,68019.0,0.161977]
[1729863031197,0.00165,68023.0,68022.0,0.286971]
[1729863031407,0.146956,68048.0,68027.0,0.16396]
[1729863031610,0.22144961,68049.0,68027.0,0.63502992]
[1729863031825,0.22144961,68049.0,68027.0,0.63302992]
[1729863031826,0.146957,68047.0,68027.0,0.63302992]
[1729863032036,0.146962,68045.0,68032.0,0.151949]
[1729863032241,0.22144961,68049.0,68032.0,0.15158424]
[1729863032242,0.38758703,68049.0,68032.0,0.15158424]
[1729863032450,0.000824,68035.0,68032.0,0.15158424]
[1729863033278,0.000824,68035.0,68032.0,0.30704805]
[1729863033492,0.000824,68035.0,68032.0,0.42821643]
[1729863034567,0.000824,68035.0,68032.0,0.53271643]
[1729863034775,0.000824,68035.0,68032.0,0.54006882]
[1729863035243,0.000824,68035.0,68032.0,0.54206882]
[1729863035402,0.000824,68035.0,68032.0,0.63796882]
[1729863035612,0.000824,68035.0,68032.0,0.64796768]
[1729863036019,0.000824,68035.0,68032.0,0.74796768]
[1729863036658,0.000824,68035.0,68032.0,0.81371552]
[1729863036872,0.000824,68035.0,68032.0,0.96561819]
[1729863037092,0.000824,68035.0,68032.0,0.79175064]
[1729863037315,0.000824,68035.0,68034.0,0.01696]
[1729863037525,0.000824,68035.0,68034.0,0.65704577]
[1729863037775,0.22144961,68056.0,68053.0,0.00496]
[1729863037999,0.22144961,68056.0,68053.0,0.49814003]
[1729863038231,5.194e-05,68058.0,68053.0,0.59094003]
[1729863038446,5.194e-05,68058.0,68053.0,0.59829172]
[1729863038663,5.194e-05,68058.0,68053.0,0.74879553]
[1729863039566,5.194e-05,68058.0,68053.0,0.84879553]
[1729863039803,5.194e-05,68058.0,68053.0,0.3093943]
[1729863040022,0.293859,68060.0,68053.0,0.146944]
[1729863040258,0.146938,68056.0,68050.0,0.293898]
[1729863040459,0.146934,68058.0,68053.0,0.146944]
[1729863040672,0.293872,68057.0,68046.0,0.293916]
[1729863040895,0.22144961,68059.0,68044.0,0.01]
[1729863040896,0.146951,68050.0,68044.0,0.01]
[1729863041152,0.22144961,68059.0,68043.0,0.293931]
[1729863041153,0.16613742,68057.0,68045.0,0.15550381]
[1729863041383,0.00268903,68058.0,68050.0,0.293899]
[1729863041647,0.00268903,68059.0,68048.0,0.29391]
[1729863041859,0.293878,68056.0,68047.0,0.293914]
[1729863042069,0.146941,68055.0,68051.0,0.146947]
[1729863042485,0.293871,68057.0,68049.0,0.14695]
[1729863042697,0.147767,68054.0,68050.0,0.14695]
[1729863043830,0.147767,68054.0,68047.0,0.06301096]
[1729863043831,0.000824,68054.0,68047.0,0.06301096]
[1729863044045,0.000824,68054.0,68051.0,0.146947]
[1729863044664,0.000824,68054.0,68047.0,0.06301096]
[1729863044665,0.000824,68054.0,68052.0,0.146946]
[1729863045093,0.000824,68054.0,68049.0,0.00459437]
[1729863045094,0.22144961,68053.0,68049.0,0.00459437]
[1729863045327,0.22144961,68053.0,68035.0,0.1]
[1729863045328,0.146949,68051.0,68046.0,0.146957]
[1729863045581,0.000824,68054.0,68045.0,0.30145664]
[1729863045807,0.000824,68054.0,68052.0,0.146945]
[1729863046014,0.000824,68054.0,68046.0,0.06940037]
[1729863046219,0.000824,68054.0,68049.0,0.146952]
[1729863046220,0.146944,68053.0,68049.0,0.146952]
[1729863046436,0.293888,68053.0,68046.0,0.06940037]
[1729863046656,0.146954,68049.0,68044.0,0.146963]
[1729863047268,0.146947,68052.0,68048.0,0.146954]
[1729863047474,0.29471,68054.0,68047.0,0.00459461]
[1729863047685,0.146956,68048.0,68044.0,0.06853018]
[1729863047933,0.000824,68054.0,68041.0,0.00459461]
[1729863048112,0.293908,68049.0,68041.0,0.146969]
[1729863048316,0.146967,68043.0,68038.0,0.15156961]
[1729863048523,0.223754,68049.0,68039.0,0.00459461]
[1729863048732,0.223754,68049.0,68041.0,0.58788]
[1729863048733,0.22144961,68048.0,68041.0,0.58788]
[1729863048958,0.36839661,68052.0,68042.0,0.06757507]
[1729863049180,0.22144961,68052.0,68043.0,0.17073203]
[1729863049374,0.36839661,68052.0,68044.0,0.00459461]
[1729863049609,0.36839661,68052.0,68043.0,0.16613742]
[1729863049610,0.22144961,68052.0,68051.0,0.146948]
[1729863049818,0.22144961,68052.0,68045.0,0.00459461]
[1729863049819,0.22144961,68052.0,68050.0,0.14695]
[1729863050027,0.000824,68054.0,68048.0,0.00459454]
[1729863050234,0.146947,68052.0,68049.0,0.06383719]
[1729863050474,0.146947,68052.0,68049.0,0.00459454]
[1729863050685,0.146947,68052.0,68048.0,0.146953]
[1729863050914,0.000824,68053.0,68049.0,0.146952]
[1729863051115,0.147768,68053.0,68049.0,0.00459454]
[1729863051318,0.147769,68053.0,68050.0,0.00459454]
[1729863051533,0.147769,68053.0,68048.0,0.146954]
[1729863051750,0.146948,68052.0,68049.0,0.00459454]
[1729863052225,0.146948,68052.0,68050.0,0.00459454]
[1729863052393,0.146946,68052.0,68049.0,0.00459454]
[1729863052603,0.146946,68052.0,68050.0,0.00459454]
[1729863052799,0.146946,68052.0,68048.0,0.15154854]
[1729863053014,0.000824,68053.0,68050.0,0.146949]
[1729863053212,0.147768,68053.0,68051.0,0.00459454]
[1729863053430,0.000824,68053.0,68051.0,0.04454665]
[1729863053591,0.000824,68053.0,68051.0,0.00459454]
[1729863053795,0.000824,68053.0,68049.0,0.146952]
[1729863053996,0.000824,68053.0,68050.0,0.00459473]
[1729863054255,0.146946,68052.0,68051.0,0.00459473]
[1729863054439,0.14963503,68052.0,68051.0,0.00459473]
[1729863054637,0.146946,68052.0,68051.0,0.00459473]
[1729863055242,0.00351303,68053.0,68051.0,0.00459473]
[1729863055400,0.29740503,68053.0,68052.0,0.00459471]
[1729863055603,0.15045703,68053.0,68052.0,0.00459471]
[1729863056373,0.000824,68053.0,68052.0,0.1747823]
[1729863057122,0.000824,68053.0,68052.0,0.34091972]
[1729863058446,0.000824,68053.0,68052.0,0.49638353]
[1729863060644,0.000824,68053.0,68052.0,0.61768353]
[1729863060874,0.000824,68054.0,68053.0,0.26309742]
[1729863061073,0.22144961,68067.0,68066.0,0.231876]
[1729863061329,0.22144961,68067.0,68066.0,0.6797635]
[1729863061686,0.001664,68078.0,68070.0,0.153867]
[1729863061939,0.001664,68078.0,68070.0,0.48339222]
[1729863062151,0.001664,68074.0,68070.0,0.6134545]
[1729863062374,0.001664,68074.0,68070.0,0.76595831]
[1729863063241,0.001664,68074.0,68070.0,0.81162341]
[1729863063450,0.00014538,68071.0,68070.0,0.97776083]
[1729863063664,0.00014538,68071.0,68070.0,0.76595831]
[1729863063881,0.001664,68078.0,68077.0,0.44923484]
[1729863064095,0.22144961,68092.0,68086.0,0.284833]
[1729863064293,0.22144961,68092.0,68086.0,0.29677927]
[1729863064729,0.22144961,68092.0,68086.0,0.28677927]
[1729863064978,0.22144961,68092.0,68086.0,0.29677927]
[1729863065187,0.22311361,68102.0,68086.0,0.56746039]
[1729863065934,0.22311361,68102.0,68086.0,0.56946039]
[1729863066170,0.22311361,68102.0,68086.0,0.56746039]
[1729863066425,0.146841,68101.0,68086.0,0.56746039]
[1729863066656,0.22311361,68102.0,68086.0,0.56746039]
[1729863067164,0.22311361,68102.0,68086.0,0.56745062]
[1729863067410,0.22311361,68102.0,68086.0,0.56945062]
[1729863068384,0.22311361,68102.0,68086.0,0.56745062]
[1729863068615,0.22311361,68102.0,68086.0,0.56945062]
[1729863068838,0.22311361,68102.0,68086.0,0.56745062]
[1729863069090,0.22144961,68095.0,68086.0,0.56745062]
[1729863069324,0.22144961,68095.0,68086.0,0.42427331]
[1729863069833,0.22144961,68095.0,68086.0,0.30931331]
[1729863070096,0.22144961,68095.0,68086.0,0.30196777]
[1729863070097,0.146859,68093.0,68086.0,0.30196777]
[1729863070338,0.293712,68094.0,68086.0,0.15146396]
[1729863070588,0.14686,68092.0,68086.0,0.15146396]
[1729863070800,0.0812,68093.0,68086.0,0.15146396]
[1729863071283,0.14686,68092.0,68086.0,0.15146396]
[1729863071511,0.0812,68093.0,68086.0,0.15146396]
[1729863071512,0.146865,68090.0,68086.0,0.15146396]
[1729863071740,0.0812,68093.0,68086.0,0.15146396]
[1729863072467,0.146861,68092.0,68086.0,0.15146396]
[1729863072710,0.0812,68093.0,68086.0,0.15146396]
[1729863073629,0.22144961,68095.0,68086.0,0.15146396]
[1729863073630,0.22144961,68094.0,68086.0,0.30196777]
[1729863073888,0.22144961,68094.0,68086.0,0.43360812]
[1729863074136,0.22144961,68094.0,68086.0,0.43067105]
[1729863074592,0.22144961,68094.0,68086.0,0.43801794]
[1729863074797,0.22144961,68094.0,68086.0,0.43067105]
[1729863075007,0.0975,68099.0,68086.0,0.43801794]
[1729863075008,0.22144961,68093.0,68086.0,0.43801794]
[1729863075244,0.22144961,68093.0,68086.0,0.43067105]
[1729863075456,0.22144961,68093.0,68086.0,0.43801794]
[1729863075666,0.22144961,68093.0,68086.0,0.00459096]
[1729863075667,0.293725,68091.0,68086.0,0.00459096]
[1729863076087,0.293725,68091.0,68086.0,0.15146396]
[1729863076088,0.146863,68091.0,68086.0,0.15146396]
[1729863076757,0.146865,68090.0,68086.0,0.15146396]
[1729863076985,0.146862,68091.0,68086.0,0.15146396]
[1729863077700,0.229034,68087.0,68086.0,0.00459096]
[1729863077912,0.082164,68087.0,68086.0,0.00459096]
[1729863078348,0.229034,68087.0,68086.0,0.00459096]
[1729863078575,0.082164,68087.0,68084.0,0.00459096]
[1729863078788,0.082164,68087.0,68080.0,0.146885]
[1729863078789,0.146878,68084.0,68080.0,0.146885]
[1729863079007,0.146878,68084.0,68076.0,0.0073474]
[1729863079008,0.62604184,68081.0,68071.0,0.0073474]
[1729863079256,0.440735,68068.0,68067.0,0.22144961]
[1729863079506,0.516935,68068.0,68067.0,0.22144961]
[1729863079749,0.0762,68068.0,68058.0,0.22144961]
[1729863080015,0.146942,68054.0,68053.0,0.001648]
[1729863080249,0.146936,68057.0,68053.0,0.15318627]
[1729863080491,0.293865,68059.0,68054.0,0.00459427]
[1729863080719,0.293865,68059.0,68053.0,0.001648]
[1729863080720,0.293866,68058.0,68053.0,0.001648]
[1729863080956,0.293866,68058.0,68054.0,0.00459436]
[1729863080957,0.00268903,68058.0,68054.0,0.00459436]
[1729863081227,0.31307642,68055.0,68054.0,0.00459436]
[1729863081464,0.146942,68054.0,68053.0,0.001648]
[1729863081719,0.14963103,68054.0,68053.0,0.00624241]
[1729863081936,0.37108064,68054.0,68053.0,0.001648]
[1729863082157,0.228342,68054.0,68053.0,0.001648]
[1729863082404,0.23103103,68054.0,68053.0,0.001648]
[1729863085179,0.60798445,68054.0,68053.0,0.001648]
[1729863085424,0.58704581,68054.0,68053.0,0.001648]
[1729863085919,0.63304766,68054.0,68053.0,0.001648]
[1729863086165,0.80118508,68054.0,68053.0,0.001648]
[1729863086449,0.39780942,68040.0,68039.0,0.001648]
[1729863086720,1.03591091,68040.0,68039.0,0.001648]
[1729863087021,1.03591091,68040.0,68016.0,0.00735266]
[1729863087022,0.294,68027.0,68016.0,0.00735266]
[1729863087239,0.294,68027.0,68008.0,0.001648]
[1729863087240,0.147013,68021.0,68020.0,0.22144961]
[1729863087548,0.147013,68021.0,68008.0,0.001648]
[1729863087549,0.0831,68020.0,68008.0,0.001648]
[1729863087741,0.147039,68009.0,68008.0,0.001648]
[1729863087991,0.31586545,68009.0,68008.0,0.001648]
[1729863088224,0.31317642,68009.0,68008.0,0.001648]
[1729863088476,0.39948323,68009.0,68008.0,0.001648]
[1729863094403,0.8174385,68009.0,68008.0,0.001648]
[1729863094591,0.66498704,68009.0,68008.0,0.001648]
[1729863095755,0.74598704,68009.0,68008.0,0.001648]
[1729863096085,0.74398704,68009.0,68008.0,0.001648]
[1729863096902,0.87282774,68009.0,68008.0,0.001648]
[1729863097199,0.83748704,68009.0,68008.0,0.001648]
[1729863097402,0.83748704,68009.0,67999.0,0.000825]
[1729863097403,0.264058,68000.0,67999.0,0.000825]
[1729863097603,0.264058,68000.0,67969.0,0.22228161]
[1729863097604,0.015,67988.0,67969.0,0.22228161]
[1729863097924,0.162091,67985.0,67969.0,0.22228161]
[1729863098129,0.31528384,67985.0,67969.0,0.22228161]
[1729863098304,0.31259481,67985.0,67969.0,0.22228161]
[1729863099086,0.31259481,67985.0,67979.0,0.147103]
[1729863099087,0.152091,67985.0,67979.0,0.147103]
[1729863099298,0.14978003,67985.0,67979.0,0.147102]
[1729863099530,0.14978003,67985.0,67980.0,0.147101]
[1729863099768,0.147087,67987.0,67977.0,0.22144961]
[1729863100003,0.00268903,67985.0,67979.0,0.294207]
[1729863100247,0.00268903,67985.0,67982.0,0.147097]
[1729863100479,0.00268903,67985.0,67979.0,0.294207]
[1729863100735,0.00268903,67985.0,67979.0,0.588415]
[1729863100999,0.294158,67991.0,67979.0,0.588415]
[1729863101000,0.105,68001.0,67979.0,0.25244423]
[1729863101273,0.22144961,67993.0,67992.0,0.147076]
[1729863101524,0.22144961,67993.0,67987.0,0.00496]
[1729863101525,0.294092,68006.0,67990.0,0.29416]
[1729863101743,0.00268903,68005.0,67990.0,0.29416]
[1729863101995,0.00268903,68005.0,67992.0,0.588304]
[1729863102228,0.00268903,68005.0,67987.0,0.00496]
[1729863102229,0.147061,67999.0,67995.0,0.147069]
[1729863102507,0.294112,68002.0,67991.0,0.294155]